fUST/lending_fUST_20240121
["ID","MTS","AMOUNT","RATE_DAILY","PERIOD"]
[312368547,1705837833753,-154.7215013,0.00021503,4]
[312368549,1705837833762,-146.33796424,0.0002343,2]
[312368551,1705837833772,-1541.61318783,0.00023892,2]
[312368554,1705837833783,-531.89197426,0.00023892,2]
[312368556,1705837833792,-702.91879491,0.00023894,2]
[312368559,1705837833814,-2283.99486452,0.00023894,2]
[312368647,1705837839500,-21913.08634057,0.00023894,2]
[312368648,1705837839510,-4013.17086376,0.00024,2]
[312368649,1705837839520,-1665.39170945,0.00024893,2]
[312368650,1705837839529,-640.68712813,0.00024894,2]
[312368651,1705837839538,-1581.76828075,0.0002615,2]
[312368652,1705837839548,-3320.66090482,0.00026272,2]
[312368653,1705837839557,-11374.79,0.00027397,2]
[312368654,1705837839567,-500.0,0.00027397,2]
[312368655,1705837839576,-1178.94,0.00027397,2]
[312368656,1705837839585,-500.0,0.00027397,2]
[312368657,1705837839594,-20724.5,0.00027397,2]
[312368658,1705837839603,-500.0,0.00027397,2]
[312368659,1705837839613,-500.0,0.00027397,2]
[312368660,1705837839622,-11374.79,0.00027671,2]
[312368661,1705837839631,-500.0,0.00027671,2]
[312368662,1705837839640,-1178.94,0.00027671,2]
[312368663,1705837839649,-500.0,0.00027671,2]
[312368664,1705837839658,-20724.5,0.00027671,2]
[312368665,1705837839667,-500.0,0.00027671,2]
[312368666,1705837839676,-500.0,0.00027671,2]
[312368667,1705837839685,-3698.1,0.00027846,3]
[312368668,1705837839695,-500.0,0.00027886,2]
[312368669,1705837839704,-500.0,0.00027886,2]
[312368670,1705837839714,-500.0,0.00027886,2]
[312368671,1705837839723,-500.0,0.00027886,2]
[312368672,1705837839732,-500.0,0.00027886,2]
[312368673,1705837839742,-500.0,0.00027886,2]
[312368674,1705837839751,-264.95436208,0.00027886,2]
[312368675,1705837839760,-4929.22,0.00027886,2]
[312368676,1705837839770,-500.0,0.00027886,2]
[312368677,1705837839780,-500.0,0.00027886,2]
[312368678,1705837839789,-500.0,0.00027886,2]
[312368679,1705837839799,-423.02517394,0.00027886,2]
[312368680,1705837839808,-606.58,0.00027886,2]
[312368681,1705837839817,-1029.84,0.00027886,2]
[312368682,1705837839826,-674.02,0.00027886,2]
[312368683,1705837839836,-500.0,0.00027886,2]
[312368684,1705837839844,-500.0,0.00027886,2]
[312368685,1705837839854,-6821.42,0.00027886,2]
[312368686,1705837839863,-500.0,0.00027886,2]
[312368687,1705837839872,-500.0,0.00027886,2]
[312368688,1705837839881,-961.99,0.00027886,2]
[312368689,1705837839890,-500.0,0.00027886,2]
[312368690,1705837839899,-1675.37,0.00027886,2]
[312368691,1705837839908,-500.0,0.00027886,2]
[312368692,1705837839917,-1188.66,0.00027886,2]
[312368693,1705837839926,-500.0,0.00027886,2]
[312368694,1705837839935,-500.0,0.00027886,2]
[312368695,1705837839945,-1035.59,0.00027886,2]
[312368696,1705837839954,-500.0,0.00027886,2]
[312368697,1705837839964,-500.0,0.00027886,2]
[312368698,1705837839973,-500.0,0.00027886,2]
[312368699,1705837839982,-633.27,0.00027886,2]
[312368700,1705837839991,-500.0,0.00027886,2]
[312368701,1705837840001,-616.88,0.00027886,2]
[312368702,1705837840010,-500.0,0.00027886,2]
[312368703,1705837840018,-500.0,0.00027886,2]
[312368704,1705837840028,-500.0,0.00027886,2]
[312368705,1705837840037,-500.0,0.00027886,2]
[312368706,1705837840046,-1557.67,0.00027886,2]
[312368707,1705837840055,-1565.51,0.00027886,2]
[312368708,1705837840068,-500.0,0.00027886,2]
[312368709,1705837840077,-552.64,0.00027886,2]
[312368710,1705837840086,-580.5625675,0.00027886,2]
[312368711,1705837840095,-500.0,0.00027897,2]
[312368712,1705837840105,-500.0,0.00027897,2]
[312368713,1705837840115,-500.0,0.00027897,2]
[312368714,1705837840124,-500.0,0.00027897,2]
[312368715,1705837840133,-500.0,0.00027897,2]
[312368716,1705837840144,-1046.76,0.00027897,2]
[312368717,1705837840154,-590.64,0.00027897,2]
[312368718,1705837840163,-500.0,0.00027897,2]
[312368719,1705837840173,-500.0,0.00027897,2]
[312368720,1705837840182,-921.12,0.00027897,2]
[312368721,1705837840191,-500.0,0.00027897,2]
[312368722,1705837840201,-500.0,0.00027897,2]
[312368723,1705837840211,-500.0,0.00027897,2]
[312368724,1705837840222,-500.0,0.00027897,2]
[312368725,1705837840233,-500.0,0.00027897,2]
[312368726,1705837840243,-583.33,0.00027897,2]
[312368727,1705837840252,-500.0,0.00027897,2]
[312368728,1705837840261,-500.0,0.00027897,2]
[312368729,1705837840271,-500.0,0.00027897,2]
[312368730,1705837840280,-500.0,0.00027897,2]
[312368731,1705837840290,-500.0,0.00027897,2]
[312368733,1705837840299,-500.0,0.00027897,2]
[312368734,1705837840309,-962.22,0.00027897,2]
[312368736,1705837840319,-1826.33,0.00027897,2]
[312368738,1705837840328,-500.0,0.00027897,2]
[312368739,1705837840338,-500.0,0.00027897,2]
[312368741,1705837840347,-500.0,0.00027897,2]
[312368742,1705837840356,-4739.13,0.00027897,2]
[312368743,1705837840366,-6559.48,0.00027897,2]
[312368744,1705837840376,-1178.71,0.00027897,2]
[312368745,1705837840385,-500.0,0.00027897,2]
[312368746,1705837840395,-500.0,0.00027897,2]
[312368747,1705837840404,-500.0,0.00027897,2]
[312368748,1705837840414,-1000.0,0.00027897,2]
[312368749,1705837840423,-632.06,0.00027897,2]
[312368750,1705837840433,-500.0,0.00027897,2]
[312368751,1705837840442,-1407.15,0.00027897,2]
[312368752,1705837840451,-500.0,0.00027897,2]
[312368753,1705837840461,-535.94,0.00027897,2]
[312368754,1705837840470,-1886.38,0.00027897,2]
[312368755,1705837840480,-500.0,0.00027897,2]
[312368756,1705837840489,-637.39,0.00027897,2]
[312368757,1705837840499,-532.74,0.00027897,2]
[312368758,1705837840508,-692.86,0.00027897,2]
[312368759,1705837840518,-500.0,0.00027897,2]
[312368760,1705837840528,-752.98,0.00027897,2]
[312368761,1705837840630,-500.0,0.00027897,2]
[312368762,1705837840659,-1166.93,0.00027897,2]
[312368763,1705837840669,-7044.69,0.00027897,2]
[312368764,1705837840678,-500.0,0.00027897,2]
[312368765,1705837840687,-500.0,0.00027897,2]
[312368766,1705837840696,-2507.74,0.00027897,2]
[312368767,1705837840705,-459.96835433,0.00027908,2]
[312368768,1705837840715,-571.71,0.00027908,2]
[312368769,1705837840724,-500.0,0.00027908,2]
[312368770,1705837840733,-500.0,0.00027908,2]
[312368771,1705837840743,-192.19323195,0.00027908,2]
[312368772,1705837840752,-500.0,0.00027908,2]
[312368773,1705837840761,-500.0,0.00027908,2]
[312368774,1705837840770,-500.0,0.00027908,2]
[312368775,1705837840779,-500.0,0.00027908,2]
[312368776,1705837840788,-500.96434093,0.00027908,2]
[312368777,1705837840797,-665.42,0.00027908,2]
[312368778,1705837840806,-500.0,0.00027908,2]
[312368779,1705837840815,-500.0,0.00027908,2]
[312368780,1705837840824,-500.0,0.00027908,2]
[312368781,1705837840833,-500.0,0.00027908,2]
[312368782,1705837840843,-500.0,0.00027908,2]
[312368783,1705837840851,-537.13772058,0.00027908,2]
[312368784,1705837840861,-261.70582474,0.00027908,2]
[312368785,1705837840870,-221.60056194,0.00027908,2]
[312368786,1705837840879,-500.0,0.00027908,2]
[312368787,1705837840888,-500.0,0.00027908,2]
[312368788,1705837840897,-941.09,0.00027908,2]
[312368789,1705837840907,-500.0,0.00027908,2]
[312368790,1705837840916,-613.43,0.00027908,2]
[312368791,1705837840925,-500.0,0.00027908,2]
[312368792,1705837840934,-1082.52,0.00027908,2]
[312368793,1705837840943,-500.0,0.00027908,2]
[312368794,1705837840953,-472.17392242,0.00027908,2]
[312368795,1705837840962,-500.0,0.00027908,2]
[312368796,1705837840971,-500.0,0.00027908,2]
[312368797,1705837840980,-163.9763583,0.00027908,2]
[312368798,1705837840990,-500.0,0.00027908,2]
[312368799,1705837840998,-500.0,0.00027908,2]
[312368800,1705837841007,-653.98,0.00027908,2]
[312368801,1705837841016,-500.0,0.00027908,2]
[312368802,1705837841025,-500.0,0.00027908,2]
[312368803,1705837841034,-500.19381526,0.00027908,2]
[312368804,1705837841043,-500.0,0.00027908,2]
[312368805,1705837841052,-611.2104419,0.00027908,2]
[312368807,1705837841061,-1031.0,0.00027908,2]
[312368809,1705837841073,-166.04810251,0.00027908,2]
[312368810,1705837841082,-500.0,0.00027908,2]
[312368812,1705837841091,-204.32141091,0.00027908,2]
[312368813,1705837841100,-500.0,0.00027908,2]
[312368814,1705837841109,-500.0,0.00027908,2]
[312368816,1705837841118,-500.0,0.00027908,2]
[312368818,1705837841127,-500.0,0.00027908,2]
[312368819,1705837841136,-1357.28,0.00027908,2]
[312368820,1705837841146,-500.0,0.00027908,2]
[312368821,1705837841155,-500.0,0.00027908,2]
[312368822,1705837841164,-500.0,0.00027908,2]
[312368823,1705837841174,-500.0,0.00027908,2]
[312368824,1705837841183,-500.0,0.00027908,2]
[312368825,1705837841192,-500.0,0.00027908,2]
[312368826,1705837841201,-500.0,0.00027908,2]
[312368827,1705837841210,-2039.73,0.00027908,2]
[312368828,1705837841218,-500.0,0.00027908,2]
[312368829,1705837841228,-500.0,0.00027908,2]
[312368830,1705837841237,-500.0,0.00027908,2]
[312368831,1705837841246,-500.0,0.00027908,2]
[312368832,1705837841256,-1053.62,0.00027908,2]
[312368833,1705837841265,-500.0,0.00027908,2]
[312368834,1705837841273,-409.5588968,0.00027908,2]
[312368835,1705837841283,-562.18289827,0.00027908,2]
[312368836,1705837841292,-1117.92,0.00027908,2]
[312368837,1705837841301,-464.02860065,0.00027908,2]
[312368838,1705837841310,-500.0,0.00027908,2]
[312368839,1705837841320,-602.55421937,0.00027908,2]
[312368840,1705837841329,-387.91365375,0.00027908,2]
[312368841,1705837841338,-500.0,0.00027908,2]
[312368842,1705837841347,-500.0,0.00027908,2]
[312368843,1705837841356,-500.0,0.00027908,2]
[312368844,1705837841365,-500.0,0.00027908,2]
[312368845,1705837841374,-500.0,0.00027908,2]
[312368846,1705837841384,-500.0,0.00027908,2]
[312368847,1705837841392,-500.0,0.00027908,2]
[312368848,1705837841402,-500.0,0.00027908,2]
[312368849,1705837841411,-637.23312708,0.00027908,2]
[312368850,1705837841420,-500.0,0.00027908,2]
[312368851,1705837841430,-500.0,0.00027908,2]
[312368852,1705837841439,-736.19,0.00027908,2]
[312368853,1705837841448,-500.0,0.00027908,2]
[312368854,1705837841458,-598.57591787,0.00027908,2]
[312368855,1705837841467,-500.0,0.00027908,2]
[312368856,1705837841476,-500.0,0.00027908,2]
[312368857,1705837841486,-500.0,0.00027908,2]
[312368858,1705837841495,-540.95,0.00027908,2]
[312368859,1705837841505,-500.0,0.00027908,2]
[312368860,1705837841514,-581.49926245,0.00027908,2]
[312368861,1705837841524,-500.0,0.00027908,2]
[312368862,1705837841533,-1000.0,0.00027908,2]
[312368863,1705837841542,-500.0,0.00027908,2]
[312368864,1705837841551,-577.9,0.00027908,2]
[312368865,1705837841560,-500.0,0.00027908,2]
[312368866,1705837841569,-549.40930506,0.00027908,2]
[312368867,1705837841578,-500.0,0.00027908,2]
[312368868,1705837841587,-500.0,0.00027908,2]
[312368869,1705837841596,-500.0,0.00027908,2]
[312368870,1705837841605,-500.0,0.00027908,2]
[312368871,1705837841615,-500.0,0.00027908,2]
[312368872,1705837841624,-500.0,0.00027908,2]
[312368873,1705837841633,-500.0,0.00027908,2]
[312368874,1705837841642,-500.0,0.00027908,2]
[312368875,1705837841652,-200.0,0.00027908,2]
[312368876,1705837841661,-500.0,0.00027908,2]
[312368877,1705837841670,-571.94,0.00027908,2]
[312368878,1705837841679,-515.04596927,0.00027908,2]
[312368879,1705837841688,-500.0,0.00027908,2]
[312368880,1705837841697,-500.0,0.00027908,2]
[312368881,1705837841706,-500.0,0.00027908,2]
[312368882,1705837841715,-500.0,0.00027908,2]
[312368883,1705837841724,-500.0,0.00027919,2]
[312368884,1705837841733,-500.0,0.00027919,2]
[312368885,1705837841742,-500.0,0.00027919,2]
[312368886,1705837841751,-500.0,0.00027919,2]
[312368887,1705837841761,-500.0,0.00027923,2]
[312368888,1705837841770,-500.0,0.00027923,2]
[312368889,1705837841779,-500.0,0.00027923,2]
[312368890,1705837841788,-500.0,0.00027923,2]
[312368891,1705837841798,-500.0,0.00027923,2]
[312368892,1705837841808,-500.0,0.00027923,2]
[312368893,1705837841817,-500.0,0.00027923,2]
[312368894,1705837841826,-5000.0,0.00027924,5]
[312368895,1705837841835,-1167.07268024,0.00027924,5]
[312368896,1705837841844,-19547.81817728,0.00027924,5]
[312368897,1705837841853,-1872.52495238,0.00027924,5]
[312368898,1705837841862,-1224.95982438,0.00027936,2]
[312368899,1705837841871,-11374.79,0.00027945,2]
[312368900,1705837841880,-500.0,0.00027945,2]
[312368901,1705837841889,-1178.94,0.00027945,2]
[312368902,1705837841898,-500.0,0.00027945,2]
[312368903,1705837841907,-20724.5,0.00027945,2]
[312368904,1705837841916,-500.0,0.00027945,2]
[312368905,1705837841925,-500.0,0.00027945,2]
[312368906,1705837841934,-500.0,0.0002816,2]
[312368907,1705837841943,-500.0,0.0002816,2]
[312368908,1705837841952,-346.71546179,0.0002816,2]
[312368909,1705837841961,-500.0,0.0002816,2]
[312368910,1705837841970,-645.0704985,0.0002816,2]
[312368911,1705837841979,-500.0,0.0002816,2]
[312368912,1705837841988,-4929.22,0.0002816,2]
[312368913,1705837841997,-500.0,0.0002816,2]
[312368914,1705837842006,-500.0,0.0002816,2]
[312368915,1705837842015,-500.0,0.0002816,2]
[312368916,1705837842024,-606.58,0.0002816,2]
[312368917,1705837842032,-1029.84,0.0002816,2]
[312368918,1705837842041,-674.02,0.0002816,2]
[312368919,1705837842050,-500.0,0.0002816,2]
[312368920,1705837842060,-500.0,0.0002816,2]
[312368921,1705837842071,-6821.42,0.0002816,2]
[312368922,1705837842079,-503.30082423,0.0002816,2]
[312368923,1705837842088,-500.0,0.0002816,2]
[312368924,1705837842097,-961.99,0.0002816,2]
[312368925,1705837842107,-500.0,0.0002816,2]
[312368926,1705837842116,-1675.37,0.0002816,2]
[312368927,1705837842125,-500.0,0.0002816,2]
[312368928,1705837842135,-1188.66,0.0002816,2]
[312368929,1705837842144,-500.0,0.0002816,2]
[312368930,1705837842154,-500.0,0.0002816,2]
[312368931,1705837842163,-1035.59,0.0002816,2]
[312368932,1705837842172,-500.0,0.0002816,2]
[312368933,1705837842182,-500.0,0.0002816,2]
[312368934,1705837842191,-500.0,0.0002816,2]
[312368935,1705837842200,-633.27,0.0002816,2]
[312368936,1705837842209,-500.0,0.0002816,2]
[312368937,1705837842218,-616.88,0.0002816,2]
[312368938,1705837842227,-500.0,0.0002816,2]
[312368939,1705837842237,-500.0,0.0002816,2]
[312368940,1705837842247,-500.0,0.0002816,2]
[312368941,1705837842255,-500.0,0.0002816,2]
[312368942,1705837842264,-1557.67,0.0002816,2]
[312368943,1705837842273,-1565.51,0.0002816,2]
[312368944,1705837842282,-500.0,0.0002816,2]
[312368945,1705837842291,-552.64,0.0002816,2]
[312368946,1705837842300,-500.0,0.00028171,2]
[312368947,1705837842310,-500.0,0.00028171,2]
[312368948,1705837842319,-500.0,0.00028171,2]
[312368949,1705837842329,-500.0,0.00028171,2]
[312368950,1705837842338,-500.0,0.00028171,2]
[312368951,1705837842347,-1046.76,0.00028171,2]
[312368952,1705837842356,-590.64,0.00028171,2]
[312368953,1705837842366,-500.0,0.00028171,2]
[312368954,1705837842376,-500.0,0.00028171,2]
[312368955,1705837842385,-921.12,0.00028171,2]
[312368956,1705837842394,-500.0,0.00028171,2]
[312368957,1705837842403,-500.0,0.00028171,2]
[312368958,1705837842412,-500.0,0.00028171,2]
[312368960,1705837842421,-500.0,0.00028171,2]
[312368962,1705837842431,-500.0,0.00028171,2]
[312368964,1705837842439,-583.33,0.00028171,2]
[312368965,1705837842449,-500.0,0.00028171,2]
[312368966,1705837842458,-500.0,0.00028171,2]
[312368967,1705837842468,-500.0,0.00028171,2]
[312368968,1705837842477,-500.0,0.00028171,2]
[312368970,1705837842487,-500.0,0.00028171,2]
[312368971,1705837842497,-500.0,0.00028171,2]
[312368972,1705837842507,-962.22,0.00028171,2]
[312368973,1705837842517,-1826.33,0.00028171,2]
[312368975,1705837842528,-500.0,0.00028171,2]
[312368977,1705837842540,-500.0,0.00028171,2]
[312368978,1705837842550,-4739.13,0.00028171,2]
[312368980,1705837842559,-500.0,0.00028171,2]
[312368982,1705837842569,-6559.48,0.00028171,2]
[312368983,1705837842578,-1178.71,0.00028171,2]
[312368984,1705837842588,-500.0,0.00028171,2]
[312368985,1705837842599,-500.0,0.00028171,2]
[312368986,1705837842608,-500.0,0.00028171,2]
[312368987,1705837842618,-1000.0,0.00028171,2]
[312368988,1705837842627,-632.06,0.00028171,2]
[312368989,1705837842636,-500.0,0.00028171,2]
[312368990,1705837842646,-1407.15,0.00028171,2]
[312368991,1705837842655,-500.0,0.00028171,2]
[312368992,1705837842665,-535.94,0.00028171,2]
[312368993,1705837842674,-1886.38,0.00028171,2]
[312368994,1705837842684,-500.0,0.00028171,2]
[312368995,1705837842694,-637.39,0.00028171,2]
[312368996,1705837842703,-532.74,0.00028171,2]
[312368997,1705837842712,-692.86,0.00028171,2]
[312368998,1705837842722,-500.0,0.00028171,2]
[312368999,1705837842733,-752.98,0.00028171,2]
[312369000,1705837842742,-500.0,0.00028171,2]
[312369001,1705837842752,-1166.93,0.00028171,2]
[312369003,1705837842762,-7044.69,0.00028171,2]
[312369005,1705837842771,-594.71433165,0.00028171,2]
[312369006,1705837842780,-500.0,0.00028171,2]
[312369007,1705837842790,-2507.74,0.00028171,2]
[312369008,1705837842800,-571.71,0.00028182,2]
[312369009,1705837842810,-500.0,0.00028182,2]
[312369011,1705837842820,-500.0,0.00028182,2]
[312369013,1705837842830,-500.0,0.00028182,2]
[312369014,1705837842839,-500.0,0.00028182,2]
[312369015,1705837842849,-560.41922832,0.00028182,2]
[312369016,1705837842860,-500.0,0.00028182,2]
[312369017,1705837842870,-665.42,0.00028182,2]
[312369018,1705837842880,-279.40130134,0.00028182,2]
[312369019,1705837842889,-500.0,0.00028182,2]
[312369020,1705837842899,-500.0,0.00028182,2]
[312369021,1705837842909,-500.0,0.00028182,2]
[312369022,1705837842919,-500.0,0.00028182,2]
[312369023,1705837842928,-500.0,0.00028182,2]
[312369024,1705837842938,-500.0,0.00028182,2]
[312369025,1705837842947,-941.09,0.00028182,2]
[312369026,1705837842957,-150.10003198,0.00028182,2]
[312369027,1705837842967,-613.43,0.00028182,2]
[312369028,1705837842977,-500.0,0.00028182,2]
[312369029,1705837842988,-1082.52,0.00028182,2]
[312369030,1705837842997,-500.0,0.00028182,2]
[312369031,1705837843007,-500.0,0.00028182,2]
[312369032,1705837843017,-500.0,0.00028182,2]
[312369033,1705837843027,-500.0,0.00028182,2]
[312369034,1705837843038,-437.94230908,0.00028182,2]
[312369035,1705837843049,-653.98,0.00028182,2]
[312369036,1705837843060,-500.0,0.00028182,2]
[312369037,1705837843073,-500.0,0.00028182,2]
[312369038,1705837843092,-1031.0,0.00028182,2]
[312369039,1705837843101,-500.0,0.00028182,2]
[312369040,1705837843110,-458.1347498,0.00028182,2]
[312369041,1705837843119,-500.0,0.00028182,2]
[312369042,1705837843228,-561.16798404,0.00028182,2]
[312369043,1705837843238,-500.0,0.00028182,2]
[312369044,1705837843247,-1357.28,0.00028182,2]
[312369045,1705837843256,-425.81095081,0.00028182,2]
[312369046,1705837843266,-500.0,0.00028182,2]
[312369047,1705837843275,-500.0,0.00028182,2]
[312369048,1705837843285,-500.0,0.00028182,2]
[312369049,1705837843294,-500.0,0.00028182,2]
[312369050,1705837843305,-500.0,0.00028182,2]
[312369051,1705837843314,-500.0,0.00028182,2]
[312369052,1705837843324,-2039.73,0.00028182,2]
[312369053,1705837843333,-500.0,0.00028182,2]
[312369054,1705837843343,-500.0,0.00028182,2]
[312369055,1705837843352,-1053.62,0.00028182,2]
[312369056,1705837843362,-500.0,0.00028182,2]
[312369057,1705837843371,-1117.92,0.00028182,2]
[312369058,1705837843380,-500.0,0.00028182,2]
[312369059,1705837843389,-500.0,0.00028182,2]
[312369060,1705837843398,-500.0,0.00028182,2]
[312369061,1705837843407,-500.0,0.00028182,2]
[312369062,1705837843416,-502.39572461,0.00028182,2]
[312369063,1705837843425,-500.0,0.00028182,2]
[312369064,1705837843434,-368.94436176,0.00028182,2]
[312369065,1705837843443,-596.3317369,0.00028182,2]
[312369066,1705837843452,-500.0,0.00028182,2]
[312369067,1705837843462,-736.19,0.00028182,2]
[312369068,1705837843471,-500.0,0.00028182,2]
[312369069,1705837843480,-500.0,0.00028182,2]
[312369070,1705837843490,-500.0,0.00028182,2]
[312369071,1705837843500,-500.0,0.00028182,2]
[312369072,1705837843509,-540.95,0.00028182,2]
[312369073,1705837843518,-500.0,0.00028182,2]
[312369074,1705837843527,-1035.93563138,0.00028182,2]
[312369075,1705837843536,-579.56324903,0.00028182,2]
[312369076,1705837843545,-577.9,0.00028182,2]
[312369077,1705837843554,-500.0,0.00028182,2]
[312369078,1705837843563,-500.0,0.00028182,2]
[312369079,1705837843573,-500.0,0.00028182,2]
[312369080,1705837843582,-500.0,0.00028182,2]
[312369081,1705837843591,-500.0,0.00028182,2]
[312369082,1705837843600,-500.0,0.00028182,2]
[312369083,1705837843609,-500.0,0.00028182,2]
[312369084,1705837843618,-500.0,0.00028182,2]
[312369085,1705837843627,-500.0,0.00028182,2]
[312369086,1705837843636,-251.91583428,0.00028182,2]
[312369087,1705837843645,-500.0,0.00028182,2]
[312369088,1705837843654,-571.94,0.00028182,2]
[312369089,1705837843663,-500.0,0.00028182,2]
[312369090,1705837843672,-500.0,0.00028182,2]
[312369091,1705837843681,-500.0,0.00028182,2]
[312369092,1705837843690,-500.0,0.00028182,2]
[312369093,1705837843700,-616.63420581,0.00028193,2]
[312369094,1705837843709,-1836.59983504,0.00028193,2]
[312369095,1705837843718,-588.23188464,0.00028193,2]
[312369096,1705837843727,-500.0,0.00028193,2]
[312369097,1705837843737,-500.0,0.00028193,2]
[312369098,1705837843746,-500.0,0.00028193,2]
[312369099,1705837843755,-500.0,0.00028193,2]
[312369100,1705837843763,-503.33303702,0.00028197,2]
[312369101,1705837843772,-500.0,0.00028197,2]
[312369102,1705837843781,-500.0,0.00028197,2]
[312369103,1705837843790,-500.0,0.00028197,2]
[312369104,1705837843799,-500.0,0.00028197,2]
[312369105,1705837843808,-500.0,0.00028197,2]
[312369106,1705837843817,-11374.79,0.00028219,2]
[312369107,1705837843826,-500.0,0.00028219,2]
[312369108,1705837843835,-1178.94,0.00028219,2]
[312369109,1705837843844,-500.0,0.00028219,2]
[312369110,1705837843853,-20724.5,0.00028219,2]
[312369111,1705837843861,-500.0,0.00028219,2]
[312369112,1705837843871,-500.0,0.00028219,2]
[312369113,1705837843880,-500.0,0.00028434,2]
[312369114,1705837843892,-500.0,0.00028434,2]
[312369115,1705837843901,-500.0,0.00028434,2]
[312369116,1705837843910,-500.0,0.00028434,2]
[312369117,1705837843919,-4929.22,0.00028434,2]
[312369118,1705837843928,-500.0,0.00028434,2]
[312369119,1705837843938,-500.0,0.00028434,2]
[312369120,1705837843947,-500.0,0.00028434,2]
[312369121,1705837843957,-606.58,0.00028434,2]
[312369122,1705837843966,-1029.84,0.00028434,2]
[312369123,1705837843974,-674.02,0.00028434,2]
[312369124,1705837843984,-500.0,0.00028434,2]
[312369125,1705837843993,-500.0,0.00028434,2]
[312369126,1705837844002,-6821.42,0.00028434,2]
[312369127,1705837844011,-500.0,0.00028434,2]
[312369128,1705837844020,-961.99,0.00028434,2]
[312369129,1705837844030,-500.0,0.00028434,2]
[312369130,1705837844039,-1675.37,0.00028434,2]
[312369131,1705837844048,-500.0,0.00028434,2]
[312369132,1705837844058,-1188.66,0.00028434,2]
[312369133,1705837844071,-500.0,0.00028434,2]
[312369134,1705837844081,-500.0,0.00028434,2]
[312369135,1705837844090,-1035.59,0.00028434,2]
[312369136,1705837844099,-500.0,0.00028434,2]
[312369137,1705837844109,-500.0,0.00028434,2]
[312369138,1705837844118,-500.0,0.00028434,2]
[312369139,1705837844128,-633.27,0.00028434,2]
[312369140,1705837844137,-500.0,0.00028434,2]
[312369141,1705837844148,-616.88,0.00028434,2]
[312369142,1705837844157,-500.0,0.00028434,2]
[312369143,1705837844166,-500.0,0.00028434,2]
[312369144,1705837844175,-500.0,0.00028434,2]
[312369145,1705837844185,-500.0,0.00028434,2]
[312369146,1705837844194,-1557.67,0.00028434,2]
[312369147,1705837844202,-1565.51,0.00028434,2]
[312369148,1705837844212,-500.0,0.00028434,2]
[312369149,1705837844221,-552.64,0.00028434,2]
[312369150,1705837844230,-500.0,0.00028445,2]
[312369151,1705837844240,-500.0,0.00028445,2]
[312369152,1705837844249,-500.0,0.00028445,2]
[312369153,1705837844258,-500.0,0.00028445,2]
[312369154,1705837844267,-500.0,0.00028445,2]
[312369155,1705837844276,-1046.76,0.00028445,2]
[312369156,1705837844286,-590.64,0.00028445,2]
[312369157,1705837844295,-500.0,0.00028445,2]
[312369158,1705837844304,-500.0,0.00028445,2]
[312369159,1705837844313,-921.12,0.00028445,2]
[312369160,1705837844323,-500.0,0.00028445,2]
[312369162,1705837844333,-500.0,0.00028445,2]